[Event "XII Paracin Festival 2019"]
[Site "Paracin"]
[Date "2019.07.06"]
[Round "3.20"]
[White "Froewis, Georg"]
[Black "Gan-Od, Sereenen"]
[Result "1/2-1/2"]
[ECO "A38"]
[WhiteElo "2434"]
[BlackElo "2294"]
[Annotator "NA"]
[PlyCount "119"]
[EventDate "2019.07.05"]
[EventType "swiss"]
[EventCountry "SRB"]
[SourceTitle "playchess.com"]
[Source "ChessBase"]
[SourceQuality "1"]
[TimeControl "5400+30"]

1. Nf3 {[%emt 0:00:00]} Nf6 {[%emt 0:00:00]} 2. c4 {[%emt 0:00:00]} c5 {[%emt 0:00:00]} 3. Nc3 {[%emt 0:00:08]} Nc6 {[%emt 0:00:00]} 4. g3 {[%emt 0:02:06]} g6 {[%emt 0:00:03]} 5. Bg2 {[%emt 0:00:55]} Bg7 {[%emt 0:00:24]} 6. d3 {[%emt 0:00:06]} O-O {[%emt 0:00:05]} 7. Bd2 {[%emt 0:00:20]} d6 {[%emt 0:00:08]} 8. Qc1 {[%emt 0:00:32]} Bg4 {[%emt 0:03:52]} 9. h3 Bxf3 10. Bxf3 {[%emt 0:00:22]} Rb8 {[%emt 0:00:49]} 11. Bg2 {[%emt 0:03:59]} Nd4 {[%emt 0:02:44]} 12. e3 {[%emt 0:01:44]} Ne6 {[%emt 0:01:21]} 13. a3 {[%emt 0:01:39]} a6 {[%emt 0:03:15]} 14. b4 {[%emt 0:00:44]} b5 {[%emt 0:00:42]} 15. cxb5 {[%emt 0:00:24]} axb5 {[%emt 0:00:01]} 16. O-O {[%emt 0:02:05]} Qd7 {[%emt 0:00:20]} 17. Rb1 {[%emt 0:01:27]} Rfc8 {[%emt 0:01:09]} 18. Qd1 {[%emt 0:01:08]} d5 {[%emt 0:02:08]} 19. bxc5 {[%emt 0:00:54]} Nxc5 {[%emt 0:00:38]} 20. Qe2 {[%emt 0:02:17]} Na4 {[%emt 0:02:31]} 21. Rfc1 {[%emt 0:03:05]} e6 {[%emt 0:02:29]} 22. Na2 {[%emt 0:10:47]} Ne8 {[%emt 0:02:54]} 23. h4 {[%emt 0:01:51]} Rxc1+ {[%emt 0:00:43]} 24. Bxc1 {[%emt 0:00:24]} Rc8 {[%emt 0:01:20]} 25. Qd1 {[%emt 0:02:16]} Nd6 {[%emt 0:03:11]} 26. Bf3 {[%emt 0:01:13]} h5 {[%emt 0:00:49]} 27. Be2 {[%emt 0:02:39]} Qc7 {[%emt 0:06:58]} 28. Bd2 {[%emt 0:01:28]} Qc2 {[%emt 0:03:02]} 29. Nb4 {[%emt 0:00:20]} Qxd1+ {[%emt 0:02:21]} 30. Bxd1 {[%emt 0:00:06]} Nc3 {[%emt 0:00:34]} 31. Bxc3 {[%emt 0:00:22]} Rxc3 {[%emt 0:02:48]} 32. a4 {[%emt 0:00:53]} bxa4 {[%emt 0:01:35]} 33. Bxa4 {[%emt 0:00:03]} Ra3 {[%emt 0:00:10]} 34. Bb3 {[%emt 0:01:38]} Bf6 {[%emt 0:02:58]} 35. d4 {[%emt 0:04:06]} Ne4 {[%emt 0:02:26]} 36. Nc2 {[%emt 0:00:52]} Ra7 {[%emt 0:02:50]} 37. Rd1 {[%emt 0:00:32]} Kg7 {[%emt 0:01:01]} 38. Kg2 {[%emt 0:00:31]} Rb7 {[%emt 0:00:49]} 39. Rd3 {[%emt 0:05:44]} Be7 {[%emt 0:01:45]} 40. Kg1 {[%emt 0:08:39]} Bd8 {[%emt 0:02:22]} 41. Na1 {[%emt 0:01:30]} Ba5 {[%emt 0:06:15]} 42. Rd1 {[%emt 0:01:32]} Nc3 {[%emt 0:01:49]} 43. Rd2 {[%emt 0:02:04]} Bb4 44. Kg2 Ne4 {[%emt 0:01:35]} 45. Rd1 {[%emt 0:00:32]} Nd6 {[%emt 0:02:18]} 46. Bc2 Ra7 47. Bd3 {[%emt 0:03:05]} Ra2 {[%emt 0:02:27]} 48. Nc2 {[%emt 0:00:41]} Rb2 49. Nxb4 {[%emt 0:02:42]} Rxb4 {[%emt 0:03:22]} 50. Rb1 {[%emt 0:00:02]} Rxb1 {[%emt 0:00:45]} 51. Bxb1 {[%emt 0:00:00]} Kf6 {[%emt 0:04:07]} 52. Kf3 {[%emt 0:00:22]} e5 53. dxe5+ Kxe5 {[%emt 0:00:32]} 54. Bd3 {[%emt 0:03:17]} f5 {[%emt 0:03:03]} 55. Ke2 {[%emt 0:01:18]} d4 {[%emt 0:00:17]} 56. exd4+ {[%emt 0:02:06]} Kxd4 {[%emt 0:00:55]} 57. Bb1 {[%emt 0:00:08]} Nb5 {[%emt 0:00:59]} 58. Kf3 {[%emt 0:00:12]} Ke5 {[%emt 0:00:05]} 59. Ba2 {[%emt 0:00:30]} Kf6 {[%emt 0:01:04]} 60. Bc4 {[%emt 0:00:39]} 1/2-1/2

[Event "XII Paracin Festival 2019"]
[Site "Paracin"]
[Date "2019.07.06"]
[Round "3.21"]
[White "Wadsworth, Matthew J"]
[Black "Pastar, Slaven"]
[Result "0-1"]
[ECO "A26"]
[WhiteElo "2418"]
[BlackElo "2276"]
[Annotator "NA"]
[PlyCount "100"]
[EventDate "2019.07.05"]
[EventType "swiss"]
[EventCountry "SRB"]
[SourceTitle "playchess.com"]
[Source "ChessBase"]
[SourceQuality "1"]
[TimeControl "5400+30"]

1. c4 {[%emt 0:00:00]} e5 {[%emt 0:00:00]} 2. g3 {[%emt 0:00:00]} Nc6 {[%emt 0:00:00]} 3. Nc3 {[%emt 0:00:01]} g6 {[%emt 0:00:26]} 4. Bg2 {[%emt 0:00:09]} Bg7 {[%emt 0:00:14]} 5. d3 {[%emt 0:00:26]} d6 {[%emt 0:01:20]} 6. Nf3 {[%emt 0:00:38]} f5 {[%emt 0:03:11]} 7. O-O {[%emt 0:01:01]} Nf6 {[%emt 0:01:36]} 8. Rb1 {[%emt 0:00:51]} a5 {[%emt 0:00:33]} 9. a3 {[%emt 0:01:03]} O-O {[%emt 0:00:42]} 10. b4 {[%emt 0:00:39]} axb4 {[%emt 0:00:01]} 11. axb4 {[%emt 0:00:06]} h6 {[%emt 0:09:47]} 12. b5 {[%emt 0:00:30]} Ne7 {[%emt 0:02:54]} 13. Bb2 {[%emt 0:00:14]} Be6 {[%emt 0:03:38]} 14. Ra1 {[%emt 0:00:42]} Rb8 {[%emt 0:00:42]} 15. Ra7 {[%emt 0:01:11]} g5 {[%emt 0:01:56]} 16. Ne1 {[%emt 0:01:38]} b6 {[%emt 0:04:07]} 17. Nc2 {[%emt 0:00:36]} f4 {[%emt 0:01:12]} 18. Nb4 {[%emt 0:03:47]} Qd7 {[%emt 0:05:35]} 19. Qb3 {[%emt 0:04:29]} Rf7 {[%emt 0:14:47]} 20. Nbd5 {[%emt 0:30:27]} Nexd5 {[%emt 0:03:18]} 21. Nxd5 {[%emt 0:00:06]} Nxd5 {[%emt 0:04:57]} 22. cxd5 {[%emt 0:00:11]} Bh3 {[%emt 0:01:13]} 23. Rxc7 {[%emt 0:01:12]} Qxc7 {[%emt 0:02:29]} 24. Bxh3 {[%emt 0:00:06]} Kh8 {[%emt 0:07:17]} 25. Be6 {[%emt 0:05:00]} Rff8 {[%emt 0:04:05]} 26. Ba3 {[%emt 0:01:38]} Qe7 {[%emt 0:01:24]} 27. Rc1 {[%emt 0:05:26]} h5 {[%emt 0:02:30]} 28. Qb4 {[%emt 0:15:40]} Rbd8 {[%emt 0:05:11]} 29. Qe4 {[%emt 0:02:26]} Qf6 {[%emt 0:01:26]} 30. f3 {[%emt 0:03:16]} g4 {[%emt 0:02:58]} 31. Kg2 {[%emt 0:03:15]} gxf3+ {[%emt 0:01:52]} 32. Qxf3 {[%emt 0:03:26]} Qg5 {[%emt 0:00:37]} 33. h4 {[%emt 0:00:56]} Qxg3+ {[%emt 0:03:16]} 34. Qxg3 {[%emt 0:00:07]} fxg3 {[%emt 0:00:01]} 35. Kxg3 {[%emt 0:03:53]} e4 {[%emt 0:05:45]} 36. dxe4 {[%emt 0:00:20]} Be5+ {[%emt 0:00:08]} 37. Kg2 {[%emt 0:02:04]} Rf4 {[%emt 0:00:13]} 38. Rf1 {[%emt 0:00:35]} Rxe4 {[%emt 0:00:53]} 39. Rf5 {[%emt 0:01:04]} Rxh4 {[%emt 0:03:47]} 40. Rxe5 {[%emt 0:00:08]} dxe5 {[%emt 0:02:22]} 41. Be7 {[%emt 0:00:14]} Rg8+ {[%emt 0:01:00]} 42. Kf3 {[%emt 0:00:11]} Rf4+ {[%emt 0:00:19]} 43. Ke3 {[%emt 0:00:01]} Rg3+ {[%emt 0:00:30]} 44. Kd2 {[%emt 0:00:27]} Kg7 {[%emt 0:00:54]} 45. e3 {[%emt 0:01:15]} Rf2+ {[%emt 0:00:22]} 46. Kd3 {[%emt 0:00:01]} Rff3 {[%emt 0:00:19]} 47. d6 {[%emt 0:00:14]} Rxe3+ {[%emt 0:00:10]} 48. Kd2 {[%emt 0:00:01]} Ra3 {[%emt 0:01:18]} 49. Ke2 {[%emt 0:00:40]} Rg2+ {[%emt 0:00:06]} 50. Kf1 {[%emt 0:00:05]} Rb2 {[%emt 0:00:47]} 0-1

[Event "XII Paracin Festival 2019"]
[Site "Paracin"]
[Date "2019.07.06"]
[Round "3.22"]
[White "Djordjevic, Vuk"]
[Black "Nandhidhaa, P V"]
[Result "1/2-1/2"]
[ECO "A45"]
[WhiteElo "2412"]
[BlackElo "2259"]
[Annotator "NA"]
[PlyCount "57"]
[EventDate "2019.07.05"]
[EventType "swiss"]
[EventCountry "SRB"]
[SourceTitle "playchess.com"]
[Source "ChessBase"]
[SourceQuality "1"]
[TimeControl "5400+30"]

1. d4 {[%emt 0:03:14]} Nf6 {[%emt 0:00:00]} 2. Bg5 {[%emt 0:00:04]} g6 {[%emt 0:00:00]} 3. Bxf6 {[%emt 0:00:06]} exf6 {[%emt 0:00:00]} 4. c4 {[%emt 0:00:06]} d5 {[%emt 0:00:00]} 5. cxd5 {[%emt 0:00:08]} Qxd5 {[%emt 0:00:00]} 6. Nc3 {[%emt 0:00:06]} Qd8 {[%emt 0:00:00]} 7. e3 {[%emt 0:00:06]} c6 {[%emt 0:00:00]} 8. h4 {[%emt 0:00:59]} h5 {[%emt 0:00:34]} 9. g3 {[%emt 0:00:58]} Bd6 {[%emt 0:01:06]} 10. Bg2 {[%emt 0:00:16]} O-O {[%emt 0:00:33]} 11. Nge2 {[%emt 0:00:10]} Re8 {[%emt 0:01:11]} 12. O-O {[%emt 0:11:38]} Na6 {[%emt 0:06:34]} 13. Rb1 {[%emt 0:07:26]} Bg4 {[%emt 0:08:41]} 14. Qd2 {[%emt 0:02:33]} Qd7 {[%emt 0:05:59]} 15. a3 {[%emt 0:08:35]} Bh3 {[%emt 0:03:14]} 16. b4 {[%emt 0:01:37]} Bxg2 {[%emt 0:00:36]} 17. Kxg2 {[%emt 0:00:04]} Nc7 {[%emt 0:01:04]} 18. a4 {[%emt 0:02:09]} a6 {[%emt 0:01:44]} 19. Qd3 {[%emt 0:01:39]} Bf8 {[%emt 0:03:21]} 20. Nf4 {[%emt 0:19:02]} Bh6 {[%emt 0:12:03]} 21. Nfe2 {[%emt 0:02:31]} f5 {[%emt 0:03:18]} 22. b5 {[%emt 0:08:04]} axb5 {[%emt 0:00:19]} 23. axb5 {[%emt 0:00:04]} Nd5 {[%emt 0:03:00]} 24. bxc6 {[%emt 0:03:39]} bxc6 {[%emt 0:01:14]} 25. Kh2 {[%emt 0:04:41]} Nf6 {[%emt 0:04:17]} 26. Kg1 {[%emt 0:05:56]} Ng4 {[%emt 0:06:43]} 27. Nf4 {[%emt 0:07:54]} Bxf4 {[%emt 0:09:47]} 28. exf4 {[%emt 0:00:03]} Rad8 {[%emt 0:02:02]} 29. Rfd1 {[%emt 0:01:27]} 1/2-1/2

[Event "XII Paracin Festival 2019"]
[Site "Paracin"]
[Date "2019.07.06"]
[Round "3.23"]
[White "Ratkovic, Milovan"]
[Black "Bratkovic, Sham"]
[Result "1-0"]
[ECO "D45"]
[WhiteElo "2407"]
[BlackElo "2237"]
[Annotator "NA"]
[PlyCount "112"]
[EventDate "2019.07.05"]
[EventType "swiss"]
[EventCountry "SRB"]
[SourceTitle "playchess.com"]
[Source "ChessBase"]
[SourceQuality "1"]
[TimeControl "5400+30"]

1. d4 d5 {[%emt 0:01:11]} 2. c4 {[%emt 0:00:00]} c6 {[%emt 0:00:44]} 3. Nc3 {[%emt 0:00:15]} Nf6 {[%emt 0:00:23]} 4. e3 {[%emt 0:00:15]} e6 {[%emt 0:00:35]} 5. Nf3 {[%emt 0:00:29]} Nbd7 {[%emt 0:00:45]} 6. Qc2 {[%emt 0:00:26]} Bd6 {[%emt 0:00:44]} 7. g4 {[%emt 0:00:39]} h6 {[%emt 0:02:38]} 8. h3 {[%emt 0:00:22]} a6 {[%emt 0:02:09]} 9. c5 {[%emt 0:02:49]} Bc7 {[%emt 0:01:40]} 10. Bd2 {[%emt 0:00:44]} b6 {[%emt 0:04:12]} 11. cxb6 {[%emt 0:01:40]} Bxb6 {[%emt 0:00:27]} 12. Na4 {[%emt 0:04:58]} Bb7 {[%emt 0:04:55]} 13. Qb3 O-O {[%emt 0:05:21]} 14. Nxb6 {[%emt 0:33:19]} Qxb6 {[%emt 0:00:15]} 15. Qxb6 {[%emt 0:00:52]} Nxb6 {[%emt 0:03:13]} 16. Rc1 {[%emt 0:02:20]} Rfc8 {[%emt 0:08:32]} 17. Rg1 {[%emt 0:06:29]} a5 {[%emt 0:04:47]} 18. Ne5 {[%emt 0:08:13]} Nbd7 19. g5 {[%emt 0:01:44]} hxg5 {[%emt 0:02:51]} 20. Nxd7 {[%emt 0:00:30]} Nxd7 {[%emt 0:00:10]} 21. Rxg5 {[%emt 0:00:27]} c5 {[%emt 0:03:13]} 22. dxc5 {[%emt 0:04:50]} Nxc5 {[%emt 0:01:34]} 23. Bc3 {[%emt 0:00:32]} g6 {[%emt 0:03:43]} 24. f3 {[%emt 0:00:30]} Na4 {[%emt 0:00:30]} 25. Bd2 {[%emt 0:12:46]} Rxc1+ {[%emt 0:06:37]} 26. Bxc1 {[%emt 0:00:05]} Ba6 {[%emt 0:00:17]} 27. Bxa6 {[%emt 0:02:50]} Rxa6 {[%emt 0:00:07]} 28. Rg4 {[%emt 0:02:26]} Nc5 {[%emt 0:05:21]} 29. Ke2 {[%emt 0:00:18]} Kg7 {[%emt 0:04:39]} 30. Bd2 {[%emt 0:01:12]} f6 {[%emt 0:01:25]} 31. Rg1 {[%emt 0:00:14]} e5 {[%emt 0:02:04]} 32. Rc1 {[%emt 0:01:41]} Ne6 {[%emt 0:00:26]} 33. Rc8 {[%emt 0:00:20]} d4 {[%emt 0:08:05]} 34. Rb8 {[%emt 0:01:01]} dxe3 {[%emt 0:01:35]} 35. Rb7+ {[%emt 0:01:31]} Kh6 {[%emt 0:02:01]} 36. Kxe3 {[%emt 0:01:07]} g5 {[%emt 0:02:03]} 37. a4 {[%emt 0:00:57]} Nc5 38. Rb5 {[%emt 0:00:39]} Nxa4 {[%emt 0:01:05]} 39. b3 {[%emt 0:00:30]} Nb6 {[%emt 0:00:36]} 40. Rxa5 {[%emt 0:00:30]} Rxa5 {[%emt 0:00:48]} 41. Bxa5 {[%emt 0:00:07]} Nc8 {[%emt 0:01:26]} 42. b4 Nd6 {[%emt 0:00:50]} 43. Bc7 {[%emt 0:03:47]} Nb5 {[%emt 0:01:47]} 44. Bd8 {[%emt 0:00:13]} Kg6 {[%emt 0:01:50]} 45. Kd3 Kf7 {[%emt 0:00:10]} 46. Kc4 {[%emt 0:01:35]} Nd4 {[%emt 0:05:41]} 47. b5 Ke8 {[%emt 0:00:04]} 48. Bxf6 {[%emt 0:01:34]} Nxf3 {[%emt 0:00:33]} 49. Kd5 {[%emt 0:03:33]} Kd7 {[%emt 0:00:30]} 50. Bxe5 Kc8 51. Bd4 {[%emt 0:01:12]} Kb7 {[%emt 0:00:47]} 52. Ke4 {[%emt 0:00:21]} Nh4 {[%emt 0:05:48]} 53. Be3 {[%emt 0:00:15]} Ng2 {[%emt 0:00:19]} 54. Bxg5 {[%emt 0:02:38]} Kb6 55. Be3+ {[%emt 0:00:39]} Kxb5 {[%emt 0:00:46]} 56. Bf2 {[%emt 0:00:00]} Kc4 1-0

[Event "XII Paracin Festival 2019"]
[Site "Paracin"]
[Date "2019.07.06"]
[Round "3.24"]
[White "Sahil, Tickoo"]
[Black "Harvey, Marcus R"]
[Result "0-1"]
[ECO "E32"]
[WhiteElo "2187"]
[BlackElo "2402"]
[Annotator "NA"]
[PlyCount "118"]
[EventDate "2019.07.05"]
[EventType "swiss"]
[EventCountry "SRB"]
[SourceTitle "playchess.com"]
[Source "ChessBase"]
[SourceQuality "1"]
[TimeControl "5400+30"]

1. d4 Nf6 {[%emt 0:03:45]} 2. c4 {[%emt 0:00:00]} e6 {[%emt 0:00:09]} 3. Nc3 {[%emt 0:00:00]} Bb4 {[%emt 0:00:04]} 4. Qc2 {[%emt 0:00:01]} O-O {[%emt 0:00:12]} 5. a3 {[%emt 0:00:09]} Bxc3+ {[%emt 0:00:10]} 6. Qxc3 {[%emt 0:00:02]} b6 {[%emt 0:00:53]} 7. Bg5 {[%emt 0:00:31]} Bb7 {[%emt 0:00:50]} 8. f3 {[%emt 0:01:21]} h6 {[%emt 0:06:54]} 9. Bh4 {[%emt 0:00:03]} c5 {[%emt 0:01:35]} 10. dxc5 {[%emt 0:01:12]} bxc5 {[%emt 0:00:32]} 11. e3 {[%emt 0:01:51]} Nc6 {[%emt 0:01:10]} 12. Bxf6 {[%emt 0:07:34]} Qxf6 {[%emt 0:00:33]} 13. Qxf6 {[%emt 0:00:09]} gxf6 {[%emt 0:00:03]} 14. Ne2 {[%emt 0:03:16]} Rfd8 {[%emt 0:02:43]} 15. Nc3 {[%emt 0:01:48]} d6 {[%emt 0:01:46]} 16. Be2 {[%emt 0:06:49]} Kf8 {[%emt 0:00:43]} 17. Kf2 {[%emt 0:10:08]} Ke7 {[%emt 0:05:34]} 18. Rhd1 {[%emt 0:05:40]} f5 {[%emt 0:01:24]} 19. f4 {[%emt 0:07:08]} Rd7 {[%emt 0:02:45]} 20. h3 {[%emt 0:00:32]} Rb8 {[%emt 0:01:18]} 21. g4 {[%emt 0:16:07]} fxg4 {[%emt 0:01:02]} 22. hxg4 {[%emt 0:01:01]} Ba8 {[%emt 0:00:28]} 23. Rd2 {[%emt 0:01:15]} Na5 {[%emt 0:00:29]} 24. Rg1 {[%emt 0:07:43]} Bc6 {[%emt 0:02:30]} 25. Na2 {[%emt 0:11:59]} Nb3 {[%emt 0:05:51]} 26. Rc2 {[%emt 0:00:23]} Be4 {[%emt 0:01:49]} 27. Rc3 {[%emt 0:00:10]} a5 {[%emt 0:02:11]} 28. Bd3 {[%emt 0:02:21]} Bxd3 {[%emt 0:03:54]} 29. Rxd3 {[%emt 0:00:01]} a4 {[%emt 0:00:07]} 30. Nc3 {[%emt 0:09:43]} Na5 {[%emt 0:00:06]} 31. Nxa4 {[%emt 0:00:09]} Nxc4 {[%emt 0:00:08]} 32. b3 {[%emt 0:02:54]} Nxa3 {[%emt 0:02:17]} 33. Rh1 {[%emt 0:01:25]} Rb4 {[%emt 0:04:02]} 34. Nb2 {[%emt 0:02:29]} Rdb7 {[%emt 0:00:21]} 35. Rxh6 {[%emt 0:00:47]} Rxb3 {[%emt 0:00:06]} 36. Rxb3 {[%emt 0:00:05]} Rxb3 {[%emt 0:00:04]} 37. Nd1 {[%emt 0:00:08]} c4 {[%emt 0:00:14]} 38. Ke2 {[%emt 0:01:01]} c3 {[%emt 0:00:46]} 39. Rh1 {[%emt 0:00:54]} Rb1 {[%emt 0:04:14]} 40. Nf2 {[%emt 0:00:10]} c2 {[%emt 0:02:06]} 41. Kd2 {[%emt 0:00:13]} Rxh1 {[%emt 0:00:08]} 42. Nxh1 {[%emt 0:00:04]} Nc4+ {[%emt 0:00:04]} 43. Kxc2 {[%emt 0:01:41]} Nxe3+ {[%emt 0:00:05]} 44. Kd3 {[%emt 0:00:08]} Nxg4 {[%emt 0:00:03]} 45. Ng3 {[%emt 0:00:10]} f5 {[%emt 0:00:04]} 46. Kd4 {[%emt 0:00:56]} Nf6 {[%emt 0:00:25]} 47. Ke3 {[%emt 0:00:15]} Kf7 {[%emt 0:00:20]} 48. Kf3 {[%emt 0:00:05]} Kg6 {[%emt 0:00:37]} 49. Ne2 {[%emt 0:00:30]} e5 {[%emt 0:00:11]} 50. fxe5 {[%emt 0:00:10]} dxe5 {[%emt 0:00:05]} 51. Ng3 {[%emt 0:00:46]} f4 {[%emt 0:00:53]} 52. Nf1 {[%emt 0:01:10]} Kf5 {[%emt 0:00:05]} 53. Kg2 {[%emt 0:00:08]} e4 {[%emt 0:00:22]} 54. Nh2 {[%emt 0:00:40]} Ng4 {[%emt 0:00:50]} 55. Nf1 {[%emt 0:00:14]} e3 {[%emt 0:00:29]} 56. Kf3 {[%emt 0:00:32]} Ne5+ {[%emt 0:00:05]} 57. Ke2 {[%emt 0:00:29]} Ke4 {[%emt 0:00:05]} 58. Nh2 {[%emt 0:00:07]} f3+ {[%emt 0:00:07]} 59. Kf1 {[%emt 0:00:18]} e2+ {[%emt 0:00:10]} 0-1

[Event "XII Paracin Festival 2019"]
[Site "Paracin"]
[Date "2019.07.06"]
[Round "3.25"]
[White "Arsovic, Zoran"]
[Black "Mammadov, Mustafa"]
[Result "1/2-1/2"]
[ECO "E94"]
[WhiteElo "2398"]
[BlackElo "2005"]
[Annotator "NA"]
[PlyCount "77"]
[EventDate "2019.07.05"]
[EventType "swiss"]
[EventCountry "SRB"]
[SourceTitle "playchess.com"]
[Source "ChessBase"]
[SourceQuality "1"]
[TimeControl "5400+30"]

1. Nf3 {[%emt 0:00:00]} Nf6 {[%emt 0:00:00]} 2. c4 {[%emt 0:00:00]} g6 {[%emt 0:00:56]} 3. Nc3 {[%emt 0:00:11]} Bg7 {[%emt 0:01:21]} 4. e4 {[%emt 0:00:16]} d6 {[%emt 0:01:02]} 5. d4 {[%emt 0:00:17]} O-O {[%emt 0:00:57]} 6. Be2 {[%emt 0:00:23]} e5 {[%emt 0:00:34]} 7. O-O {[%emt 0:00:18]} exd4 {[%emt 0:00:21]} 8. Nxd4 {[%emt 0:00:29]} Re8 {[%emt 0:01:10]} 9. f3 {[%emt 0:05:07]} c6 {[%emt 0:04:38]} 10. Bf4 {[%emt 0:02:05]} Na6 {[%emt 0:09:08]} 11. Kh1 {[%emt 0:07:38]} d5 {[%emt 0:14:28]} 12. cxd5 {[%emt 0:11:33]} cxd5 {[%emt 0:00:28]} 13. Bb5 {[%emt 0:01:33]} Bd7 {[%emt 0:05:24]} 14. exd5 {[%emt 0:06:32]} Nc7 {[%emt 0:19:59]} 15. Bc4 {[%emt 0:09:40]} b5 {[%emt 0:17:29]} 16. Ndxb5 {[%emt 0:16:22]} Nxb5 {[%emt 0:00:19]} 17. Nxb5 {[%emt 0:00:20]} Nh5 {[%emt 0:00:41]} 18. Qd2 {[%emt 0:08:29]} Nxf4 {[%emt 0:02:35]} 19. Qxf4 {[%emt 0:00:51]} Be5 {[%emt 0:00:09]} 20. Qd2 {[%emt 0:00:46]} Rc8 {[%emt 0:10:23]} 21. Bd3 {[%emt 0:14:26]} Rc5 {[%emt 0:03:35]} 22. Nc3 {[%emt 0:01:10]} Bxc3 {[%emt 0:00:11]} 23. bxc3 {[%emt 0:00:04]} Rxd5 {[%emt 0:00:04]} 24. Qc2 {[%emt 0:01:48]} Re3 {[%emt 0:04:53]} 25. Bc4 {[%emt 0:07:01]} Rh5 {[%emt 0:01:10]} 26. Qd2 {[%emt 0:01:05]} Qc7 {[%emt 0:00:23]} 27. f4 {[%emt 0:00:12]} Re8 {[%emt 0:00:40]} 28. Be2 {[%emt 0:02:19]} Rc5 {[%emt 0:00:28]} 29. Rac1 {[%emt 0:00:23]} Rc8 {[%emt 0:00:29]} 30. Ba6 {[%emt 0:02:29]} Rb8 {[%emt 0:00:21]} 31. Bd3 {[%emt 0:00:40]} Rc8 {[%emt 0:00:27]} 32. c4 {[%emt 0:00:15]} Be6 {[%emt 0:00:34]} 33. f5 {[%emt 0:00:38]} Bxc4 {[%emt 0:00:34]} 34. Qh6 {[%emt 0:01:00]} Qd6 {[%emt 0:00:34]} 35. fxg6 {[%emt 0:00:33]} hxg6 {[%emt 0:00:13]} 36. Bxc4 {[%emt 0:00:26]} Rxc4 {[%emt 0:00:01]} 37. Rxc4 {[%emt 0:00:26]} Rxc4 {[%emt 0:00:01]} 38. Qe3 {[%emt 0:00:16]} Qc7 {[%emt 0:01:09]} 39. h3 {[%emt 0:00:19]} 1/2-1/2

[Event "XII Paracin Festival 2019"]
[Site "Paracin"]
[Date "2019.07.06"]
[Round "3.26"]
[White "Abramovic, Bosko"]
[Black "Saksham Rautela"]
[Result "1/2-1/2"]
[ECO "D60"]
[WhiteElo "2373"]
[BlackElo "2232"]
[Annotator "NA"]
[PlyCount "95"]
[EventDate "2019.07.05"]
[EventType "swiss"]
[EventCountry "SRB"]
[SourceTitle "playchess.com"]
[Source "ChessBase"]
[SourceQuality "1"]
[TimeControl "5400+30"]

1. c4 {[%emt 0:00:00]} Nf6 {[%emt 0:00:00]} 2. Nc3 {[%emt 0:00:01]} e6 {[%emt 0:00:00]} 3. Nf3 {[%emt 0:00:57]} d5 {[%emt 0:00:13]} 4. d4 {[%emt 0:00:19]} Be7 {[%emt 0:02:32]} 5. Bg5 {[%emt 0:00:22]} O-O {[%emt 0:00:31]} 6. e3 {[%emt 0:00:34]} Nbd7 {[%emt 0:02:58]} 7. Bd3 {[%emt 0:02:48]} c5 {[%emt 0:04:23]} 8. cxd5 {[%emt 0:01:01]} Nxd5 {[%emt 0:05:52]} 9. Bxe7 {[%emt 0:00:09]} Nxe7 {[%emt 0:00:32]} 10. O-O {[%emt 0:01:14]} cxd4 {[%emt 0:00:38]} 11. Nxd4 {[%emt 0:00:27]} Nf6 {[%emt 0:02:38]} 12. Qc2 {[%emt 0:01:07]} Ned5 {[%emt 0:03:31]} 13. Nxd5 {[%emt 0:01:34]} Qxd5 {[%emt 0:00:48]} 14. Rfd1 {[%emt 0:00:29]} Bd7 {[%emt 0:03:28]} 15. Qc4 {[%emt 0:05:35]} Qxc4 {[%emt 0:04:16]} 16. Bxc4 {[%emt 0:00:05]} Rac8 {[%emt 0:00:21]} 17. Rac1 {[%emt 0:00:22]} Rfd8 {[%emt 0:00:44]} 18. h3 {[%emt 0:01:51]} Kf8 {[%emt 0:01:55]} 19. Be2 {[%emt 0:02:22]} Ke7 {[%emt 0:09:29]} 20. f4 {[%emt 0:00:26]} Nd5 {[%emt 0:05:19]} 21. Kf2 {[%emt 0:00:06]} Nb4 {[%emt 0:01:41]} 22. a3 {[%emt 0:07:10]} Rxc1 {[%emt 0:02:24]} 23. Rxc1 {[%emt 0:00:10]} Nc6 {[%emt 0:00:03]} 24. Nb5 {[%emt 0:07:51]} a6 {[%emt 0:05:07]} 25. Nc3 {[%emt 0:00:08]} Rc8 {[%emt 0:01:42]} 26. Ne4 {[%emt 0:02:02]} Na7 {[%emt 0:02:05]} 27. Rxc8 {[%emt 0:00:18]} Nxc8 {[%emt 0:01:03]} 28. Nc5 {[%emt 0:00:56]} Nd6 {[%emt 0:01:44]} 29. e4 {[%emt 0:03:22]} Bc6 {[%emt 0:00:36]} 30. Bd3 {[%emt 0:00:34]} a5 {[%emt 0:04:31]} 31. e5 {[%emt 0:00:26]} Ne8 {[%emt 0:02:05]} 32. g3 {[%emt 0:03:42]} b6 {[%emt 0:01:44]} 33. Nb3 {[%emt 0:00:11]} h5 {[%emt 0:05:22]} 34. Nd2 {[%emt 0:02:56]} Nc7 {[%emt 0:02:31]} 35. Be2 {[%emt 0:00:08]} g6 {[%emt 0:01:25]} 36. Nc4 {[%emt 0:00:17]} Na8 {[%emt 0:10:02]} 37. Bf3 {[%emt 0:03:37]} Kd7 {[%emt 0:03:03]} 38. Nd6 {[%emt 0:02:21]} Bxf3 {[%emt 0:01:19]} 39. Kxf3 {[%emt 0:00:08]} f6 {[%emt 0:01:17]} 40. Nf7 {[%emt 0:00:29]} Ke7 {[%emt 0:01:04]} 41. Nh8 {[%emt 0:03:50]} g5 {[%emt 0:00:36]} 42. g4 {[%emt 0:06:34]} h4 {[%emt 0:01:48]} 43. Ke4 {[%emt 0:02:57]} Nc7 {[%emt 0:00:16]} 44. Ng6+ {[%emt 0:00:32]} Kf7 {[%emt 0:00:38]} 45. f5 {[%emt 0:00:13]} Na6 {[%emt 0:02:49]} 46. Nh8+ {[%emt 0:06:58]} Ke7 {[%emt 0:00:40]} 47. Ng6+ {[%emt 0:00:53]} Kf7 {[%emt 0:00:01]} 48. Nh8+ {[%emt 0:00:07]} 1/2-1/2

[Event "XII Paracin Festival 2019"]
[Site "Paracin"]
[Date "2019.07.06"]
[Round "3.27"]
[White "Baglan, Esat"]
[Black "Tanishka Kotia"]
[Result "1-0"]
[ECO "B01"]
[WhiteElo "2336"]
[BlackElo "1942"]
[Annotator "NA"]
[PlyCount "113"]
[EventDate "2019.07.05"]
[EventType "swiss"]
[EventCountry "SRB"]
[SourceTitle "playchess.com"]
[Source "ChessBase"]
[SourceQuality "1"]
[TimeControl "5400+30"]

1. e4 d5 2. exd5 Nf6 3. Nf3 Nxd5 4. d4 Bg4 5. h3 Bh5 6. c4 Nb6 7. Nc3 e6 8. g4 Bg6 9. Ne5 c6 10. h4 Bb4 11. Bg2 f6 12. Nxg6 hxg6 13. Qd3 f5 14. Bf4 Rxh4 15. O-O-O Rxg4 16. Rh8+ Bf8 17. Qe3 Qf6 18. Bf1 g5 19. Be5 Qf7 20. c5 Nd5 21. Nxd5 cxd5 22. Bxb8 Rxb8 23. f3 Rf4 24. Qe5 Rc8 25. Bb5+ Ke7 26. Re1 a6 27. Qxd5 Rd8 28. Qxb7+ Kf6 29. Qxa6 g4 30. fxg4 Rdxd4 31. Rxe6+ Qxe6 32. Rxf8+ Ke5 33. Re8 Rf1+ 34. Kc2 Rf2+ 35. Kc1 Rf1+ 36. Bxf1 Qxe8 37. gxf5 Kxf5 38. Bd3+ Kf4 39. c6 Qe1+ 40. Kc2 Qf2+ 41. Kc3 Ke5 42. Qb5+ Rd5 43. Qb8+ Rd6 44. Qe8+ Re6 45. Qb8+ Rd6 46. Bb5 Qd2+ 47. Kb3 Qd5+ 48. Ka3 Qc5+ 49. Ka4 Kf6 50. b4 Qc2+ 51. Ka5 Qxa2+ 52. Kb6 Qd2 53. Qf8+ Kg6 54. Qe8+ Kh6 55. Kb7 Qxb4 56. c7 Rd5 57. Qe6+ {Rd6 Qe8 Qc5 Qh8+} 1-0